fUSD/lending_fUSD_20260512
["ID","MTS","AMOUNT","RATE_DAILY","PERIOD"]
[422094813,1778571367000,-1500.0,0.00015868,2]
[422094774,1778571367000,-500.0,0.00014999,2]
[422094776,1778571367000,-508.81029755,0.00014999,2]
[422094779,1778571367000,-630.41,0.00015,2]
[422094858,1778571368000,-1136.281255,0.00016969,2]
[422094862,1778571368000,-654.400014,0.00016969,2]
[422094860,1778571368000,-1136.281255,0.00016969,2]
[422094863,1778571368000,-654.400014,0.00016969,2]
[422094842,1778571368000,-155.0,0.00016498,2]
[422094843,1778571368000,-2000.0,0.00016597,2]
[422094847,1778571368000,-2500.0,0.00016964,2]
[422094844,1778571368000,-450.0,0.00016712,2]
[422094845,1778571368000,-587.0,0.00016884,2]
[422094859,1778571368000,-1136.281255,0.00016969,2]
[422094854,1778571368000,-448.648598,0.00016969,2]
[422094853,1778571368000,-151.0,0.00016969,2]
[422094874,1778571368000,-1000.0,0.00016986,2]
[422094856,1778571368000,-448.648598,0.00016969,2]
[422094855,1778571368000,-448.648598,0.00016969,2]
[422094861,1778571368000,-1136.281255,0.00016969,2]
[422094864,1778571368000,-654.400014,0.00016969,2]
[422094869,1778571368000,-500.0,0.00016973,2]
[422094866,1778571368000,-151.0,0.00016969,2]
[422094867,1778571368000,-171.81453,0.00016969,2]
[422094875,1778571368000,-1000.0,0.00016986,2]
[422094865,1778571368000,-654.400014,0.00016969,2]
[422094868,1778571368000,-500.0,0.00016973,2]
[422094870,1778571368000,-289.55339026,0.00016973,2]
[422094872,1778571368000,-610.7460418,0.00016986,2]
[422094846,1778571368000,-2203.55581159,0.00016964,2]
[422094857,1778571368000,-448.648598,0.00016969,2]
[422094849,1778571368000,-151.0,0.00016966,2]
[422094832,1778571368000,-501.71906878,0.00016438,2]
[422094850,1778571368000,-3551.371331,0.00016969,2]
[422094818,1778571368000,-2000.0,0.00016416,2]
[422094873,1778571368000,-500.85398403,0.00016986,2]
[422094816,1778571368000,-350.0,0.00016164,2]
[422094819,1778571368000,-2000.0,0.00016416,2]
[422094822,1778571368000,-500.0,0.00016438,2]
[422094821,1778571368000,-305.5,0.00016438,2]
[422094825,1778571368000,-1136.281255,0.00016438,2]
[422094824,1778571368000,-1136.281255,0.00016438,2]
[422094820,1778571368000,-151.0,0.00016416,2]
[422094823,1778571368000,-500.0,0.00016438,2]
[422094827,1778571368000,-1136.281255,0.00016438,2]
[422094829,1778571368000,-500.0,0.00016438,2]
[422094826,1778571368000,-1136.281255,0.00016438,2]
[422094828,1778571368000,-500.0,0.00016438,2]
[422094831,1778571368000,-500.0,0.00016438,2]
[422094830,1778571368000,-615.0043839,0.00016438,2]
[422094835,1778571368000,-500.0,0.00016438,2]
[422094833,1778571368000,-500.0,0.00016438,2]
[422094836,1778571368000,-500.0,0.00016438,2]
[422094840,1778571368000,-151.0,0.00016438,2]
[422094834,1778571368000,-500.0,0.00016438,2]
[422094837,1778571368000,-151.0,0.00016438,2]
[422094838,1778571368000,-151.0,0.00016438,2]
[422094839,1778571368000,-151.0,0.00016438,2]
[422094851,1778571368000,-213093.9163226,0.00016969,2]
[422094852,1778571368000,-298.346545,0.00016969,2]
[422094841,1778571368000,-482.87,0.00016464,2]
[422094848,1778571368000,-151.0,0.00016966,2]
[422094817,1778571368000,-433.0,0.00016404,2]
[422094871,1778571368000,-1000.0,0.00016986,2]
[422094888,1778571368000,-1500.0,0.00017534,2]
[422094904,1778571368000,-185.32,0.00018564,2]
[422094914,1778571368000,-1136.281255,0.00019339,2]
[422094912,1778571368000,-448.648598,0.00019339,2]
[422094913,1778571368000,-1136.281255,0.00019339,2]
[422094908,1778571368000,-151.0,0.00019339,2]
[422094909,1778571368000,-448.648598,0.00019339,2]
[422094903,1778571368000,-600.0,0.00018564,2]
[422094911,1778571368000,-448.648598,0.00019339,2]
[422094917,1778571368000,-654.400014,0.00019339,2]
[422094919,1778571368000,-654.400014,0.00019339,2]
[422094920,1778571368000,-654.400014,0.00019339,2]
[422094918,1778571368000,-654.400014,0.00019339,2]
[422094921,1778571368000,-151.0,0.00019339,2]
[422094925,1778571368000,-3557.977,0.0002,10]
[422094923,1778571368000,-176.03,0.00019504,2]
[422094922,1778571368000,-12191.05,0.00019339,2]
[422094926,1778571368000,-164.74173103,0.0002,2]
[422094927,1778571368000,-232.0,0.0002,2]
[422094929,1778571368000,-520.0,0.0002,2]
[422094928,1778571368000,-37054.97,0.0002,30]
[422094924,1778571368000,-2000.0,0.00019917,2]
[422094930,1778571368000,-160.0,0.0002,30]
[422094931,1778571368000,-963.0,0.0002,2]
[422094932,1778571368000,-542.0,0.0002,2]
[422094934,1778571368000,-654.400014,0.0002,2]
[422094878,1778571368000,-617.96406145,0.00016986,2]
[422094933,1778571368000,-229.0,0.0002,2]
[422094905,1778571368000,-797.31647382,0.0001863,2]
[422094906,1778571368000,-150.79009377,0.00019178,2]
[422094935,1778571368000,-654.400014,0.0002,2]
[422094910,1778571368000,-448.648598,0.00019339,2]
[422094915,1778571368000,-1136.281255,0.00019339,2]
[422094876,1778571368000,-1000.0,0.00016986,2]
[422094882,1778571368000,-313.6251751,0.00017521,2]
[422094889,1778571368000,-2967.63,0.00017895,2]
[422094881,1778571368000,-993.59354438,0.00017512,2]
[422094877,1778571368000,-928.89097521,0.00016986,2]
[422094887,1778571368000,-1505.44740162,0.00017534,2]
[422094879,1778571368000,-1000.0,0.00016986,2]
[422094885,1778571368000,-1388.73166699,0.00017534,2]
[422094883,1778571368000,-1000.0,0.00017521,2]
[422094886,1778571368000,-1500.0,0.00017534,2]
[422094884,1778571368000,-502.82280248,0.00017534,2]
[422094900,1778571368000,-305.5,0.0001841,2]
[422094880,1778571368000,-651.05929088,0.0001726,2]
[422094898,1778571368000,-1408.546,0.00018344,2]
[422094916,1778571368000,-1136.281255,0.00019339,2]
[422094907,1778571368000,-209.97427919,0.00019233,2]
[422094902,1778571368000,-823.0,0.00018496,2]
[422094899,1778571368000,-158.81,0.00018344,2]
[422094890,1778571368000,-155.0,0.00017998,2]
[422094896,1778571368000,-2000.0,0.00018257,2]
[422094895,1778571368000,-197.0,0.00018248,2]
[422094893,1778571368000,-2000.0,0.00018082,2]
[422094894,1778571368000,-1501.43213113,0.00018082,2]
[422094892,1778571368000,-22593.93511509,0.0001808,2]
[422094901,1778571368000,-500.0,0.00018493,2]
[422094897,1778571368000,-482.87,0.00018294,2]
[422094891,1778571368000,-312.76767965,0.00018068,2]
[422094977,1778571369000,-1613.0,0.00022196,2]
[422094975,1778571369000,-229.0,0.00022,2]
[422094972,1778571369000,-520.0,0.00022,2]
[422094970,1778571369000,-279.7,0.00021929,2]
[422094973,1778571369000,-963.0,0.00022,2]
[422094963,1778571369000,-1136.281255,0.00021757,2]
[422094969,1778571369000,-5072.77,0.00021929,30]
[422094965,1778571369000,-1136.281255,0.00021757,2]
[422094967,1778571369000,-5000.0,0.00021918,2]
[422094971,1778571369000,-232.0,0.00022,2]
[422094968,1778571369000,-2132.52,0.00021929,30]
[422094976,1778571369000,-164.44,0.00022097,2]
[422094979,1778571369000,-185.32,0.00022216,2]
[422094978,1778571369000,-600.0,0.00022216,2]
[422094980,1778571369000,-305.5,0.00022353,2]
[422094981,1778571369000,-350.0,0.00022391,2]
[422094986,1778571369000,-499.99,0.00022562,2]
[422094983,1778571369000,-7011.61,0.00022562,2]
[422094984,1778571369000,-9999.99,0.00022562,2]
[422094996,1778571369000,-255.49,0.00022562,2]
[422094988,1778571369000,-1577.54,0.00022562,2]
[422094998,1778571369000,-630.41,0.000228,7]
[422094999,1778571369000,-4000.0,0.00023,30]
[422094990,1778571369000,-3657.15,0.00022562,5]
[422094966,1778571369000,-1136.281255,0.00021757,2]
[422094985,1778571369000,-9999.99,0.00022562,2]
[422094974,1778571369000,-542.0,0.00022,2]
[422094951,1778571369000,-520.0,0.00021,2]
[422094958,1778571369000,-207.41478,0.00021757,2]
[422094936,1778571369000,-654.400014,0.0002,2]
[422094937,1778571369000,-654.400008,0.0002,2]
[422094938,1778571369000,-151.0,0.0002,2]
[422094939,1778571369000,-482.87,0.00020123,2]
[422094940,1778571369000,-150.0,0.0002024,2]
[422094941,1778571369000,-1152.0,0.00020262,2]
[422094943,1778571369000,-305.5,0.00020381,2]
[422094944,1778571369000,-164.44,0.00020413,2]
[422094942,1778571369000,-504.0,0.00020274,2]
[422094945,1778571369000,-627.49,0.00020548,2]
[422094946,1778571369000,-630.41,0.000206,2]
[422094947,1778571369000,-2202.0,0.00020933,5]
[422094948,1778571369000,-2612.0,0.00020933,5]
[422094949,1778571369000,-155.0,0.00020997,2]
[422094950,1778571369000,-232.0,0.00021,2]
[422094952,1778571369000,-963.0,0.00021,2]
[422094954,1778571369000,-229.0,0.00021,2]
[422094956,1778571369000,-166.26,0.00021125,2]
[422094962,1778571369000,-448.648598,0.00021757,2]
[422094955,1778571369000,-3036.6,0.00021,2]
[422094959,1778571369000,-448.648598,0.00021757,2]
[422094957,1778571369000,-150.0,0.0002155,2]
[422094953,1778571369000,-542.0,0.00021,2]
[422094960,1778571369000,-448.648598,0.00021757,2]
[422094961,1778571369000,-448.648598,0.00021757,2]
[422094964,1778571369000,-1136.281255,0.00021757,2]
[422094997,1778571369000,-7647.87,0.00022562,2]
[422094982,1778571369000,-299.99,0.00022562,7]
[422094987,1778571369000,-9999.99,0.00022562,2]
[422095025,1778571369000,-584.0,0.00024316,2]
[422095023,1778571369000,-7573.90413628,0.00024063,2]
[422095029,1778571369000,-150.0,0.0002455,30]
[422095028,1778571369000,-774.49450725,0.000245,2]
[422095027,1778571369000,-515.0,0.00024397,2]
[422095032,1778571369000,-150.0,0.0002455,30]
[422095030,1778571369000,-150.0,0.0002455,30]
[422095031,1778571369000,-161.44333753,0.0002455,30]
[422095034,1778571369000,-150.0,0.0002455,30]
[422095033,1778571369000,-150.0,0.0002455,30]
[422095035,1778571369000,-150.0,0.0002455,30]
[422095036,1778571369000,-268.87677318,0.0002455,30]
[422095037,1778571369000,-500.0,0.0002455,7]
[422095042,1778571369000,-500.0,0.0002455,30]
[422095040,1778571369000,-500.0,0.0002455,7]
[422095041,1778571369000,-500.0,0.0002455,7]
[422095038,1778571369000,-500.0,0.0002455,7]
[422095039,1778571369000,-500.0,0.0002455,7]
[422095043,1778571369000,-500.0,0.0002455,7]
[422095044,1778571369000,-500.0,0.0002455,30]
[422095046,1778571369000,-500.0,0.0002455,7]
[422095048,1778571369000,-500.0,0.0002455,30]
[422095049,1778571369000,-500.0,0.0002455,7]
[422095047,1778571369000,-500.0,0.0002455,30]
[422095045,1778571369000,-500.0,0.0002455,30]
[422095026,1778571369000,-305.5,0.00024324,2]
[422095024,1778571369000,-774.49450725,0.000243,2]
[422094994,1778571369000,-720.05,0.00022562,2]
[422095017,1778571369000,-774.49450725,0.00024,2]
[422095022,1778571369000,-229.0,0.00024,2]
[422094991,1778571369000,-3010.86,0.00022562,2]
[422094993,1778571369000,-150.99,0.00022562,2]
[422094989,1778571369000,-4999.99,0.00022562,2]
[422094995,1778571369000,-520.09,0.00022562,2]
[422094992,1778571369000,-3481.83,0.00022562,2]
[422095000,1778571369000,-49175.50621341,0.00023,2]
[422095002,1778571369000,-232.0,0.00023,2]
[422095005,1778571369000,-448.648598,0.00023,2]
[422095004,1778571369000,-963.0,0.00023,2]
[422095003,1778571369000,-520.0,0.00023,2]
[422095006,1778571369000,-448.648598,0.00023,2]
[422095007,1778571369000,-448.648598,0.00023,2]
[422095001,1778571369000,-2622.0,0.00023,30]
[422095009,1778571369000,-1136.281255,0.00023,2]
[422095019,1778571369000,-520.0,0.00024,2]
[422095010,1778571369000,-1136.281255,0.00023,2]
[422095020,1778571369000,-963.0,0.00024,2]
[422095016,1778571369000,-164.44,0.00023782,2]
[422095018,1778571369000,-232.0,0.00024,2]
[422095021,1778571369000,-542.0,0.00024,2]
[422095013,1778571369000,-542.0,0.00023,2]
[422095015,1778571369000,-209.97427919,0.00023567,2]
[422095014,1778571369000,-229.0,0.00023,2]
[422095011,1778571369000,-1136.281255,0.00023,2]
[422095012,1778571369000,-1136.28125548,0.00023,2]
[422095008,1778571369000,-448.648593,0.00023,2]
[422095062,1778571370000,-252.45324732,0.0002455,30]
[422095055,1778571370000,-500.0,0.0002455,30]
[422095059,1778571370000,-500.0,0.0002455,30]
[422095063,1778571370000,-220.80068816,0.0002455,30]
[422095065,1778571370000,-153.69931528,0.00024658,2]
[422095060,1778571370000,-500.0,0.0002455,30]
[422095053,1778571370000,-388.74163212,0.0002455,7]
[422095057,1778571370000,-500.0,0.0002455,30]
[422095054,1778571370000,-111.25836788,0.0002455,7]
[422095052,1778571370000,-500.0,0.0002455,30]
[422095051,1778571370000,-500.0,0.0002455,30]
[422095050,1778571370000,-500.0,0.0002455,30]
[422095061,1778571370000,-500.0,0.0002455,7]
[422095056,1778571370000,-465.74461559,0.0002455,30]
[422095064,1778571370000,-338.72809111,0.0002455,7]
[422095058,1778571370000,-500.0,0.0002455,7]
[422095068,1778571370000,-151.000007,0.00024658,2]
[422095067,1778571370000,-151.0,0.00024658,2]
[422095082,1778571370000,-315.01210746,0.00021244,2]
[422095080,1778571370000,-1844.54929,0.00021044,2]
[422095081,1778571370000,-618.64630256,0.00021244,2]
[422095076,1778571370000,-379.75709781,0.00020644,2]
[422095078,1778571370000,-150.90122215,0.00020933,5]
[422095079,1778571370000,-2447.09877785,0.00020933,5]
[422095077,1778571370000,-1844.54929,0.00020844,2]
[422095075,1778571370000,-1464.79219219,0.00020644,2]
[422095073,1778571370000,-325.90311699,0.00020444,2]
[422095074,1778571370000,-1518.64616301,0.00020444,2]
[422095072,1778571370000,-1872.20836112,0.00024658,2]
[422095071,1778571370000,-2720.87,0.00024658,2]
[422095070,1778571370000,-213.38,0.00024658,2]
[422095066,1778571370000,-198.62,0.00024658,2]
[422095069,1778571370000,-159.65,0.00024658,2]
[422095094,1778571371000,-278.36,0.00024658,2]
[422095091,1778571371000,-1224.39,0.00024658,2]
[422095090,1778571371000,-3479.69,0.00024658,2]
[422095089,1778571371000,-221.76,0.00024658,2]
[422095084,1778571371000,-866.68118293,0.00021244,2]
[422095088,1778571371000,-161.94,0.00024658,2]
[422095086,1778571371000,-1252.98191619,0.00024658,2]
[422095085,1778571371000,-1844.54929,0.00021444,2]
[422095083,1778571371000,-44.20969705,0.00021244,2]
[422095087,1778571371000,-4607.45972269,0.00024658,2]
[422095095,1778571371000,-159.78,0.00024658,2]
[422095092,1778571371000,-285.35,0.00024658,2]
[422095096,1778571371000,-1855.97,0.00024658,2]
[422095097,1778571371000,-774.49450725,0.000248,2]
[422095103,1778571371000,-1352.64561099,0.00014069,2]
[422095105,1778571371000,-1352.64561099,0.00014069,2]
[422095104,1778571371000,-1352.64561099,0.00014069,2]
[422095106,1778571371000,-446.2648079,0.00014999,2]
[422095093,1778571371000,-164.56,0.00024658,2]
[422095101,1778571371000,-1352.64561099,0.00014069,2]
[422095099,1778571371000,-3070.06018504,0.00024802,7]
[422095100,1778571371000,-31.42816682,0.00024802,7]
[422095098,1778571371000,-2720.87,0.00024802,7]
[422095102,1778571371000,-1352.64561099,0.00014069,2]
[422095108,1778571372000,-1895.848635,0.00013999,2]
[422095109,1778571372000,-1650.8474411,0.00014039,2]
[422095107,1778571372000,-2000.0,0.00012829,2]
[422095113,1778571372000,-881.30413502,0.00016036,2]
[422095112,1778571372000,-501.10146709,0.00014973,2]
[422095111,1778571372000,-2000.0,0.00014433,2]
[422095110,1778571372000,-1070.90832179,0.00014069,5]
[422095121,1778571373000,-512.57749196,0.00014999,2]
[422095115,1778571373000,-500.0,0.00014999,2]
[422095114,1778571373000,-500.0,0.00014999,2]
[422095116,1778571373000,-500.0,0.00014999,2]
[422095117,1778571373000,-500.0,0.00014999,2]
[422095119,1778571373000,-500.0,0.00014999,2]
[422095122,1778571373000,-1118.69586498,0.00016036,2]
[422095118,1778571373000,-500.0,0.00014999,2]
[422095123,1778571373000,-2000.0,0.0001764,2]
[422095124,1778571373000,-1610.98,0.0002,30]
[422095125,1778571373000,-298.64,0.00013189,2]
[422095126,1778571373000,-9701.37,0.0001397,2]
[422095128,1778571373000,159.82,7.431e-05,2]
[422095127,1778571373000,159.82,6.715e-05,2]
[422095120,1778571373000,-500.0,0.00014999,2]
[422095138,1778571374000,-7309.68733877,0.00014629,2]
[422095134,1778571374000,-159.82,0.00011732,2]
[422095133,1778571374000,-159.82,0.00011016,2]
[422095130,1778571374000,159.82,8.865e-05,2]
[422095131,1778571374000,159.82,9.582e-05,2]
[422095129,1778571374000,159.82,8.148e-05,2]
[422095136,1778571374000,-159.82,0.00013166,2]
[422095132,1778571374000,159.82,0.00010299,2]
[422095135,1778571374000,-159.82,0.00012449,2]
[422095140,1778571374000,-4442.7253224,0.00014629,2]
[422095139,1778571374000,-300.0,0.00013969,2]
[422095143,1778571374000,-501.8654968,0.00014999,2]
[422095141,1778571374000,-500.0,0.00014773,2]
[422095142,1778571374000,-378.71849941,0.000149,2]
[422095144,1778571374000,-3876.70068139,0.00015288,2]
[422095145,1778571374000,-4835.15251489,0.0001397,2]
[422095147,1778571374000,-4664.85748511,0.00015288,2]
[422095146,1778571374000,-500.0,0.00014999,2]
[422095148,1778571374000,-10000.01,0.00014039,2]
[422095137,1778571374000,-2051.04266123,0.0001397,2]
[422095153,1778571375000,-150.0,0.00014038,2]
[422095149,1778571375000,-7322.8006746,0.00014039,2]
[422095150,1778571375000,-2677.2093254,0.00015288,2]
[422095151,1778571375000,-533.64516927,0.00015288,2]
[422095155,1778571375000,-7563.96216956,0.00016606,2]
[422095152,1778571375000,-9466.36483073,0.00015947,2]
[422095156,1778571375000,-12424.99460149,0.0001406,2]
[422095158,1778571375000,1873.19,0.00012868,2]
[422095160,1778571375000,-5811.55950839,0.00017264,2]
[422095157,1778571375000,-1165.73749515,0.000149,2]
[422095159,1778571375000,-4188.45049161,0.00016606,2]
[422095154,1778571375000,-2286.04783044,0.00015947,2]
[422095161,1778571376000,486.72054991,0.00014069,2]
[422095164,1778571376000,-4059.15684722,0.00017788,2]
[422095163,1778571376000,-5940.85315278,0.00017264,2]
[422095165,1778571376000,-775.99566761,0.00017788,2]
[422095166,1778571376000,-9224.01433239,0.00017923,2]
[422095168,1778571376000,-7471.61167122,0.00018582,2]
[422095162,1778571376000,1807.04827217,0.0001397,2]
[422095169,1778571376000,347.517931,0.00015,2]
[422095170,1778571376000,347.517931,0.00015,2]
[422095171,1778571376000,347.517931,0.00015,2]
[422095172,1778571376000,347.517931,0.00015,2]
[422095174,1778571376000,162.88,0.0001363,2]
[422095173,1778571376000,162.88,0.00013194,2]
[422095175,1778571376000,162.88,0.00014065,2]
[422095167,1778571376000,-2528.39832878,0.00017923,2]
[422095192,1778571377000,347.517931,0.00015,2]
[422095191,1778571377000,347.517931,0.00015,2]
[422095189,1778571377000,-378.71849937,0.00019233,2]
[422095186,1778571377000,-500.0,0.00019178,2]
[422095188,1778571377000,-571.3861099,0.00019178,2]
[422095184,1778571377000,-347.517931,0.0001841,2]
[422095190,1778571377000,-1683.99681478,0.00019241,2]
[422095187,1778571377000,-500.0,0.00019178,2]
[422095181,1778571377000,-347.517931,0.00016969,2]
[422095182,1778571377000,-347.517931,0.0001841,2]
[422095183,1778571377000,-347.517931,0.0001841,2]
[422095180,1778571377000,-347.517931,0.00016969,2]
[422095179,1778571377000,-347.517931,0.00016969,2]
[422095178,1778571377000,347.517931,0.00015,2]
[422095177,1778571377000,347.517931,0.00015,2]
[422095176,1778571377000,162.88,0.00014501,2]
[422095185,1778571377000,-4280.80098995,0.00018582,2]
[422095193,1778571377000,150.0,0.00012743,2]
[422095200,1778571377000,-763.44170839,0.00019241,2]
[422095196,1778571377000,-9304.974138,0.00019241,2]
[422095194,1778571377000,-347.517931,0.00016969,2]
[422095210,1778571377000,-197.650267,0.00018248,2]
[422095211,1778571377000,-250.34585133,0.00021607,2]
[422095212,1778571377000,-5000.0,0.00021918,2]
[422095209,1778571377000,-970.49587286,0.000149,2]
[422095208,1778571377000,-1200.0,0.00013629,2]
[422095207,1778571377000,-4584.8066635,0.00021607,2]
[422095206,1778571377000,-347.517938,0.0002,2]
[422095213,1778571377000,-1610.98,0.00021929,30]
[422095201,1778571377000,-7727.28105567,0.000199,2]
[422095198,1778571377000,-500.0,0.00014999,2]
[422095205,1778571377000,-347.517931,0.0002,2]
[422095203,1778571377000,-347.517931,0.0002,2]
[422095202,1778571377000,-4025.1316055,0.000199,2]
[422095195,1778571377000,-347.517931,0.0001841,2]
[422095199,1778571377000,-509.28723594,0.00014999,2]
[422095197,1778571377000,-500.0,0.00014999,2]
[422095204,1778571377000,-347.517931,0.0002,2]
[422095214,1778571378000,-216.2991487,0.00014069,2]
[422095216,1778571378000,-151.0,0.00015,2]
[422095215,1778571378000,-539.77444412,0.00014069,2]
[422095218,1778571378000,-151.0,0.00016969,2]
[422095220,1778571378000,-150.0,0.00019178,2]
[422095219,1778571378000,-154.114476,0.0001841,2]
[422095221,1778571378000,-265.9822,0.00021096,2]
[422095217,1778571378000,-151.0,0.00015,2]
[422095222,1778571379000,152.0,0.00025454,120]
[422095225,1778571672000,-48.0,0.0001375,2]
[422095223,1778571672000,-200.0,0.00012648,2]
[422095224,1778571672000,-152.0,0.0001375,2]
[422095226,1778571672000,-104.0,0.0001375,2]
[422095232,1778571672000,-150.0,0.00013886,2]
[422095228,1778571672000,-56.0,0.00013772,2]
[422095229,1778571672000,-144.0,0.00013772,2]
[422095231,1778571672000,-8.0,0.00013772,2]
[422095233,1778571672000,-42.0,0.00013912,2]
[422095227,1778571672000,-96.0,0.00013772,2]
[422095236,1778571673000,-192.0,0.00013912,2]
[422095235,1778571673000,-8.0,0.00013912,2]
[422095234,1778571673000,-200.0,0.00013912,2]
[422095237,1778571674000,-108.0,0.00013912,2]
[422095238,1778571674000,-92.0,0.0001397,2]
[422095239,1778571746000,-200.0,0.00012873,2]
[422095240,1778571747000,164.6,0.00025475,120]
[422095241,1778571747000,-200.0,0.00012873,2]
[422095245,1778571747000,-200.0,0.00012873,2]
[422095243,1778571747000,-200.0,0.00012873,2]
[422095244,1778571747000,-200.0,0.00012873,2]
[422095242,1778571747000,-200.0,0.00012873,2]
[422095247,1778571748000,-54.8,0.00012873,2]
[422095246,1778571748000,-145.2,0.00012873,2]
[422095248,1778571821000,-408.0,0.00012873,2]
[422095249,1778571822000,-408.0,0.00012873,2]
[422095251,1778571823000,-408.0,0.00012873,2]
[422095250,1778571823000,-408.0,0.00012873,2]
[422095254,1778571823000,-108.0,0.00012873,2]
[422095253,1778571823000,-300.0,0.00012872,2]
[422095252,1778571823000,324.25271333,0.0001,2]
[422095255,1778571824000,-408.0,0.00012873,2]
[422095257,1778571900000,-4249.28,0.00012873,2]
[422095256,1778571900000,241.0,0.00027397,120]
[422095259,1778571901000,-152.0,0.00013751,2]
[422095260,1778571901000,-152.0,0.00013751,2]
[422095258,1778571901000,-1638.85990153,0.00013672,2]
[422095264,1778571901000,-373.96017238,0.0001414,2]
[422095263,1778571901000,-408.0,0.0001397,2]
[422095265,1778571901000,-24.45992609,0.00014999,2]
[422095262,1778571901000,-1200.0,0.00013896,2]
[422095261,1778571901000,-300.0,0.00013896,2]
[422095267,1778572011000,-500.0,0.00014999,2]
[422095266,1778572011000,-475.54007391,0.00014999,2]
[422095269,1778572011000,-500.0,0.00014999,2]
[422095268,1778572011000,-500.0,0.00014999,2]
[422095272,1778572011000,-500.0,0.00014999,2]
[422095274,1778572011000,-273.73992609,0.00014999,2]
[422095273,1778572011000,-500.0,0.00014999,2]
[422095271,1778572011000,-500.0,0.00014999,2]
[422095270,1778572011000,-500.0,0.00014999,2]
[422095288,1778572012000,-500.0,0.00014999,2]
[422095287,1778572012000,-500.0,0.00014999,2]
[422095285,1778572012000,-361.78707968,0.00014999,2]
[422095284,1778572012000,-138.21292032,0.00014999,2]
[422095282,1778572012000,-500.0,0.00014999,2]
[422095283,1778572012000,-500.0,0.00014999,2]
[422095278,1778572012000,-500.0,0.00014999,2]
[422095281,1778572012000,-500.0,0.00014999,2]
[422095279,1778572012000,-500.0,0.00014999,2]
[422095277,1778572012000,-500.0,0.00014999,2]
[422095275,1778572012000,-226.26007391,0.00014999,2]
[422095276,1778572012000,-384.80700577,0.00014999,2]
[422095280,1778572012000,-500.0,0.00014999,2]
[422095289,1778572012000,-500.0,0.00014999,2]
[422095286,1778572012000,-500.0,0.00014999,2]
[422095291,1778572012000,-500.0,0.00014999,2]
[422095303,1778572012000,-136.77292032,0.00014999,2]
[422095302,1778572012000,-500.0,0.00014999,2]
[422095290,1778572012000,-500.0,0.00014999,2]
[422095300,1778572012000,-500.0,0.00014999,2]
[422095301,1778572012000,-500.0,0.00014999,2]
[422095299,1778572012000,-500.0,0.00014999,2]
[422095298,1778572012000,-500.0,0.00014999,2]
[422095296,1778572012000,-500.0,0.00014999,2]
[422095295,1778572012000,-500.0,0.00014999,2]
[422095294,1778572012000,-112.50707968,0.00014999,2]
[422095304,1778572012000,1195.89,0.000103,2]
[422095293,1778572012000,-387.49292032,0.00014999,2]
[422095292,1778572012000,-500.0,0.00014999,2]
[422095297,1778572012000,-500.0,0.00014999,2]
[422095305,1778572049000,-475.54007391,0.00010821,2]
[422095306,1778572161000,-475.54007391,0.00010821,2]
[422095308,1778572162000,-244.80985218,0.00010821,2]
[422095307,1778572162000,152.0,0.00025491,120]
[422095311,1778572163000,-475.54007391,0.00011342,2]
[422095310,1778572163000,-475.54007391,0.00011342,2]
[422095309,1778572163000,-230.73022173,0.00011342,2]
[422095313,1778572164000,-461.46044346,0.00011863,2]